[Event "FRA-chT Top 12 2019"]
[Site "Brest"]
[Date "2019.05.23"]
[Round "6.5"]
[White "Fressinet, Laurent"]
[Black "Cappon, John"]
[Result "1-0"]
[ECO "A04"]
[WhiteElo "2640"]
[BlackElo "2094"]
[Annotator "RC"]
[PlyCount "71"]
[EventDate "2019.05.18"]
[EventType "team-tourn"]
[EventCountry "FRA"]
[SourceTitle "playchess.com"]
[Source "ChessBase"]
[SourceQuality "1"]
[TimeControl "40/5400+30:1800+30"]

1. Nf3 {[%emt 0:00:00]} f5 {[%emt 0:02:54]} 2. d3 {[%emt 0:00:18]} d6 {[%emt 0:00:12]} 3. e4 {[%emt 0:00:36]} e5 {[%emt 0:00:08]} 4. Nc3 {[%emt 0:00:08]} Nc6 {[%emt 0:07:34]} 5. exf5 {[%emt 0:02:01]} Bxf5 {[%emt 0:04:38]} 6. d4 {[%emt 0:00:55]} Bg4 {[%emt 0:11:03]} 7. Bb5 {[%emt 0:15:51]} exd4 {[%emt 0:03:57]} 8. Qxd4 {[%emt 0:02:23]} Bxf3 {[%emt 0:10:21]} 9. gxf3 {[%emt 0:00:27]} Qd7 {[%emt 0:03:42]} 10. Qe4+ {[%emt 0:03:58]} Nge7 {[%emt 0:01:32]} 11. Bg5 {[%emt 0:07:52]} a6 {[%emt 0:06:54]} 12. Bc4 {[%emt 0:17:21]} Qf5 {[%emt 0:12:30]} 13. h4 {[%emt 0:01:54]} Qxe4+ {[%emt 0:17:21]} 14. fxe4 {[%emt 0:00:19]} h6 {[%emt 0:00:23]} 15. Be3 {[%emt 0:05:12]} g6 {[%emt 0:05:39]} 16. O-O-O {[%emt 0:01:10]} h5 {[%emt 0:02:01]} 17. f4 {[%emt 0:03:45]} Bh6 {[%emt 0:00:37]} 18. Be6 {[%emt 0:01:29]} Rf8 {[%emt 0:00:45]} 19. Rdf1 {[%emt 0:02:30]} Rf6 {[%emt 0:01:05]} 20. Bh3 {[%emt 0:00:16]} Kf7 {[%emt 0:01:09]} 21. Bd2 {[%emt 0:04:31]} Rf8 {[%emt 0:00:32]} 22. Ne2 {[%emt 0:02:41]} Ke8 {[%emt 0:00:32]} 23. Kd1 {[%emt 0:02:41]} Nd8 {[%emt 0:00:54]} 24. Rf3 {[%emt 0:01:44]} d5 {[%emt 0:03:12]} 25. exd5 {[%emt 0:01:18]} Nxd5 {[%emt 0:00:28]} 26. Re1 {[%emt 0:00:06]} Kf7 {[%emt 0:00:41]} 27. Ng3 {[%emt 0:05:10]} Kg8 {[%emt 0:01:18]} 28. f5 {[%emt 0:02:56]} Bxd2 {[%emt 0:00:27]} 29. Kxd2 {[%emt 0:00:03]} gxf5 {[%emt 0:01:18]} 30. Re5 {[%emt 0:03:22]} Rd6 {[%emt 0:00:28]} 31. Nxf5 {[%emt 0:01:43]} Nc6 {[%emt 0:00:34]} 32. Nxd6 {[%emt 0:01:48]} Rxf3 {[%emt 0:00:28]} 33. Be6+ {[%emt 0:00:29]} Kf8 {[%emt 0:00:16]} 34. Rxd5 {[%emt 0:01:19]} Ke7 {[%emt 0:00:43]} 35. Nxb7 {[%emt 0:00:59]} Kxe6 {[%emt 0:00:21]} 36. Rxh5 {[%emt 0:00:04] Kd5} 1-0

[Event "FRA-chT Top 12 2019"]
[Site "Brest"]
[Date "2019.05.23"]
[Round "6.5"]
[White "Istratescu, Andrei"]
[Black "Apicella, Manuel"]
[Result "0-1"]
[ECO "C06"]
[WhiteElo "2555"]
[BlackElo "2502"]
[Annotator "RC"]
[PlyCount "78"]
[EventDate "2019.05.18"]
[EventType "team-tourn"]
[EventCountry "FRA"]
[SourceTitle "playchess.com"]
[Source "ChessBase"]
[SourceQuality "1"]
[TimeControl "40/5400+30:1800+30"]

1. e4 {[%emt 0:00:00]} e6 {[%emt 0:00:00]} 2. d4 {[%emt 0:00:00]} d5 {[%emt 0:00:00]} 3. Nd2 {[%emt 0:00:00]} Nf6 {[%emt 0:00:01]} 4. e5 {[%emt 0:00:23]} Nfd7 {[%emt 0:00:07]} 5. c3 {[%emt 0:00:34]} c5 {[%emt 0:00:17]} 6. Bd3 {[%emt 0:00:19]} Nc6 {[%emt 0:00:18]} 7. Ne2 {[%emt 0:00:16]} cxd4 {[%emt 0:00:16]} 8. cxd4 {[%emt 0:00:09]} f6 {[%emt 0:00:09]} 9. exf6 {[%emt 0:00:26]} Nxf6 {[%emt 0:00:07]} 10. O-O {[%emt 0:00:17]} Bd6 {[%emt 0:00:17]} 11. Nf3 {[%emt 0:00:10]} O-O {[%emt 0:00:20]} 12. Bf4 {[%emt 0:03:15]} Bxf4 {[%emt 0:00:19]} 13. Nxf4 {[%emt 0:00:16]} Ne4 {[%emt 0:00:13]} 14. Qc1 {[%emt 0:00:28]} Ng5 {[%emt 0:00:30]} 15. Nxg5 {[%emt 0:04:29]} Qxg5 {[%emt 0:00:07]} 16. Ne2 {[%emt 0:05:49]} Qf6 {[%emt 0:00:36]} 17. Qd2 {[%emt 0:01:41]} Bd7 {[%emt 0:00:23]} 18. Bb5 {[%emt 0:04:27]} Nb8 {[%emt 0:03:58]} 19. a4 {[%emt 0:02:47]} Bc6 {[%emt 0:09:58]} 20. Bd3 {[%emt 0:08:18]} Be8 {[%emt 0:07:21]} 21. Ra3 {[%emt 0:04:20]} Nc6 {[%emt 0:06:33]} 22. Bb5 {[%emt 0:07:37]} Ne7 {[%emt 0:02:04]} 23. Ng3 {[%emt 0:11:06]} a6 {[%emt 0:04:21]} 24. Bxe8 {[%emt 0:07:31]} Raxe8 {[%emt 0:01:08]} 25. Qb4 {[%emt 0:00:47]} Nc6 {[%emt 0:02:26]} 26. Qxb7 {[%emt 0:00:59]} Nxd4 {[%emt 0:00:27]} 27. Qxa6 {[%emt 0:00:27]} Rb8 {[%emt 0:02:35]} 28. Ne2 {[%emt 0:07:19]} Nb3 {[%emt 0:04:59]} 29. f4 {[%emt 0:12:30]} Qxb2 {[%emt 0:01:49]} 30. Qxe6+ {[%emt 0:02:16]} Kh8 {[%emt 0:00:13]} 31. Rxb3 {[%emt 0:00:43]} Qxb3 {[%emt 0:01:01]} 32. Ng3 {[%emt 0:02:21]} Qd3 {[%emt 0:06:25]} 33. f5 {[%emt 0:02:07]} Rb1 {[%emt 0:03:31]} 34. Rxb1 {[%emt 0:01:32]} Qxb1+ {[%emt 0:00:07]} 35. Kf2 {[%emt 0:00:01]} Qc2+ {[%emt 0:01:23]} 36. Kf3 {[%emt 0:00:56]} Qd1+ {[%emt 0:03:52]} 37. Kf2 {[%emt 0:00:56]} Qd4+ {[%emt 0:00:39]} 38. Qe3 {[%emt 0:07:19]} Qxa4 {[%emt 0:00:55]} 39. Qe5 {[%emt 0:00:03]} Re8 {[%emt 0:06:04]} 0-1

[Event "FRA-chT Top 12 2019"]
[Site "Brest"]
[Date "2019.05.23"]
[Round "6.5"]
[White "Nezar, Mustapha"]
[Black "Balogh, Csaba"]
[Result "1/2-1/2"]
[ECO "E32"]
[WhiteElo "2339"]
[BlackElo "2598"]
[Annotator "RC"]
[PlyCount "31"]
[EventDate "2019.05.18"]
[EventType "team-tourn"]
[EventCountry "FRA"]
[SourceTitle "playchess.com"]
[Source "ChessBase"]
[SourceQuality "1"]
[TimeControl "40/5400+30:1800+30"]

1. d4 {[%emt 0:00:00]} Nf6 {[%emt 0:00:00]} 2. c4 {[%emt 0:00:00]} e6 {[%emt 0:00:16]} 3. Nc3 {[%emt 0:01:22]} Bb4 {[%emt 0:00:19]} 4. Qc2 {[%emt 0:00:22]} b6 {[%emt 0:00:40]} 5. e4 {[%emt 0:02:38]} c5 {[%emt 0:00:32]} 6. d5 {[%emt 0:02:43]} Qe7 {[%emt 0:00:35]} 7. Nge2 {[%emt 0:04:45]} exd5 {[%emt 0:04:23]} 8. exd5 {[%emt 0:02:44]} O-O {[%emt 0:01:52]} 9. Bd2 {[%emt 0:14:40]} d6 {[%emt 0:05:05]} 10. h3 {[%emt 0:14:03]} Bxc3 {[%emt 0:18:01]} 11. Qxc3 {[%emt 0:04:40]} Ne4 {[%emt 0:04:29]} 12. Qe3 {[%emt 0:02:00]} Re8 {[%emt 0:00:21]} 13. O-O-O {[%emt 0:02:09]} Bf5 {[%emt 0:01:26]} 14. f3 {[%emt 0:07:57]} Nxd2 {[%emt 0:01:41]} 15. Qxe7 {[%emt 0:01:10]} Rxe7 {[%emt 0:24:31]} 16. Kxd2 {[%emt 0:02:16]} 1/2-1/2

[Event "FRA-chT Top 12 2019"]
[Site "Brest"]
[Date "2019.05.23"]
[Round "6.5"]
[White "Charmeteau, Sven"]
[Black "Lamard, Guillaume"]
[Result "1-0"]
[ECO "B67"]
[WhiteElo "2292"]
[BlackElo "2405"]
[Annotator "RC"]
[PlyCount "45"]
[EventDate "2019.05.18"]
[EventType "team-tourn"]
[EventCountry "FRA"]
[SourceTitle "playchess.com"]
[Source "ChessBase"]
[SourceQuality "1"]
[TimeControl "40/5400+30:1800+30"]

1. e4 {[%emt 0:00:00]} c5 {[%emt 0:00:24]} 2. Nf3 {[%emt 0:00:00]} d6 {[%emt 0:00:08]} 3. d4 {[%emt 0:00:00]} cxd4 {[%emt 0:00:04]} 4. Nxd4 {[%emt 0:00:00]} Nf6 {[%emt 0:00:05]} 5. Nc3 {[%emt 0:00:01]} Nc6 {[%emt 0:00:04]} 6. Bg5 {[%emt 0:00:45]} e6 {[%emt 0:02:02]} 7. Qd2 {[%emt 0:00:51]} a6 {[%emt 0:00:07]} 8. O-O-O {[%emt 0:01:41]} Bd7 {[%emt 0:00:20]} 9. f4 {[%emt 0:04:10]} b5 {[%emt 0:01:19]} 10. a3 {[%emt 0:17:41]} Qb6 {[%emt 0:10:13]} 11. e5 {[%emt 0:10:59]} dxe5 {[%emt 0:16:44]} 12. Ndxb5 {[%emt 0:01:07]} axb5 {[%emt 0:06:23]} 13. Bxf6 {[%emt 0:00:13]} Ra7 {[%emt 0:06:30]} 14. Ne4 {[%emt 0:10:01]} exf4 {[%emt 0:24:48]} 15. Bxb5 {[%emt 0:04:30]} gxf6 {[%emt 0:09:56]} 16. Nxf6+ {[%emt 0:00:45]} Ke7 {[%emt 0:01:39]} 17. Nxd7 {[%emt 0:00:18]} Qxb5 {[%emt 0:00:24]} 18. Qd6+ {[%emt 0:00:18]} Kd8 {[%emt 0:00:10]} 19. Nxf8+ {[%emt 0:00:18]} Kc8 {[%emt 0:00:22]} 20. Rd3 {[%emt 0:07:17]} Rc7 {[%emt 0:02:28]} 21. Nxe6 {[%emt 0:00:37]} Rb7 {[%emt 0:05:52]} 22. Rb3 {[%emt 0:02:14]} Qc4 {[%emt 0:00:30]} 23. Rc3 {[%emt 0:10:38]} 1-0

[Event "FRA-chT Top 12 2019"]
[Site "Brest"]
[Date "2019.05.23"]
[Round "6.5"]
[White "Dornbusch, Tatiana"]
[Black "Degraeve, Jean-Marc"]
[Result "0-1"]
[ECO "E62"]
[WhiteElo "2285"]
[BlackElo "2546"]
[Annotator "RC"]
[PlyCount "90"]
[EventDate "2019.05.18"]
[EventType "team-tourn"]
[EventCountry "FRA"]
[SourceTitle "playchess.com"]
[Source "ChessBase"]
[SourceQuality "1"]
[TimeControl "40/5400+30:1800+30"]

1. d4 {[%emt 0:03:49]} Nf6 {[%emt 0:00:00]} 2. Nf3 {[%emt 0:00:16]} g6 {[%emt 0:00:00]} 3. g3 {[%emt 0:00:17]} Bg7 {[%emt 0:00:00]} 4. Bg2 {[%emt 0:00:14]} O-O {[%emt 0:00:00]} 5. O-O {[%emt 0:00:36]} d6 {[%emt 0:00:35]} 6. c4 {[%emt 0:00:46]} Nc6 {[%emt 0:00:25]} 7. Nc3 {[%emt 0:02:53]} e5 {[%emt 0:00:40]} 8. dxe5 {[%emt 0:06:17]} dxe5 {[%emt 0:00:07]} 9. Qxd8 {[%emt 0:00:10]} Rxd8 {[%emt 0:00:37]} 10. Bg5 {[%emt 0:00:14]} Be6 {[%emt 0:01:08]} 11. b3 {[%emt 0:04:07]} h6 {[%emt 0:08:21]} 12. Bxf6 {[%emt 0:05:59]} Bxf6 {[%emt 0:00:13]} 13. Rad1 {[%emt 0:00:07]} Bg7 {[%emt 0:07:59]} 14. Nd2 {[%emt 0:12:02]} Bf8 {[%emt 0:04:49]} 15. Bd5 {[%emt 0:21:09]} Bd7 {[%emt 0:03:05]} 16. Nf3 {[%emt 0:07:29]} Bh3 {[%emt 0:02:52]} 17. Rfe1 {[%emt 0:02:45]} Bb4 {[%emt 0:07:09]} 18. Rc1 {[%emt 0:00:37]} Re8 {[%emt 0:09:28]} 19. Red1 {[%emt 0:09:03]} Kg7 {[%emt 0:06:28]} 20. Nb5 {[%emt 0:02:27]} Rec8 {[%emt 0:01:48]} 21. c5 {[%emt 0:13:02]} a6 {[%emt 0:00:06]} 22. a3 {[%emt 0:00:12]} axb5 {[%emt 0:01:14]} 23. axb4 {[%emt 0:00:03]} Ra2 {[%emt 0:00:22]} 24. Bxc6 {[%emt 0:03:50]} bxc6 {[%emt 0:00:05]} 25. Nxe5 {[%emt 0:02:07]} Re8 {[%emt 0:05:16]} 26. Nd3 {[%emt 0:00:11]} Be6 {[%emt 0:02:50]} 27. Ra1 {[%emt 0:01:43]} Rxe2 {[%emt 0:02:44]} 28. Nf4 {[%emt 0:00:03]} Re4 {[%emt 0:02:09]} 29. Nxe6+ {[%emt 0:00:34]} R8xe6 {[%emt 0:00:02]} 30. Rd7 {[%emt 0:00:42]} Rxb4 {[%emt 0:00:42]} 31. Rxc7 {[%emt 0:00:42]} Rxb3 {[%emt 0:00:07]} 32. Ra6 {[%emt 0:00:09]} Re2 {[%emt 0:02:14]} 33. Rcxc6 {[%emt 0:01:07]} Rf3 {[%emt 0:00:06]} 34. Rab6 {[%emt 0:00:33]} Rfxf2 {[%emt 0:00:09]} 35. Rxb5 {[%emt 0:00:24]} Rg2+ {[%emt 0:00:16]} 36. Kf1 {[%emt 0:00:14]} Ref2+ {[%emt 0:00:08]} 37. Ke1 {[%emt 0:00:08]} Rc2 {[%emt 0:00:15]} 38. Kf1 {[%emt 0:00:57]} Rxh2 {[%emt 0:00:08]} 39. Kg1 {[%emt 0:00:29]} Rhg2+ {[%emt 0:00:31]} 40. Kf1 {[%emt 0:00:37]} Rxg3 {[%emt 0:00:06]} 41. Rc7 {[%emt 0:04:42]} Ra3 {[%emt 0:02:33]} 42. Re7 {[%emt 0:02:23]} Rf3+ {[%emt 0:00:12]} 43. Ke1 {[%emt 0:00:52]} Rf5 {[%emt 0:00:12]} 44. Rc7 {[%emt 0:00:15]} Rh5 {[%emt 0:00:16]} 45. Kd1 {[%emt 0:00:34]} Ra2 {[%emt 0:00:05]} 0-1

[Event "FRA-chT Top 12 2019"]
[Site "Brest"]
[Date "2019.05.23"]
[Round "6.7"]
[White "Sokolov, Andrei"]
[Black "Riff, Vincent"]
[Result "1-0"]
[ECO "B24"]
[WhiteElo "2496"]
[BlackElo "2399"]
[Annotator "RC"]
[PlyCount "87"]
[EventDate "2019.05.18"]
[EventType "team-tourn"]
[EventCountry "FRA"]
[SourceTitle "playchess.com"]
[Source "ChessBase"]
[SourceQuality "1"]
[TimeControl "40/5400+30:1800+30"]

1. e4 {[%emt 0:00:00]} c5 {[%emt 0:00:00]} 2. Nc3 {[%emt 0:00:00]} Nc6 {[%emt 0:00:26]} 3. Nf3 {[%emt 0:00:19]} Nf6 {[%emt 0:00:41]} 4. Bb5 {[%emt 0:02:05]} Qc7 {[%emt 0:00:59]} 5. O-O {[%emt 0:04:56]} Nd4 {[%emt 0:02:50]} 6. Re1 {[%emt 0:05:31]} a6 {[%emt 0:01:00]} 7. Bf1 {[%emt 0:00:54]} Ng4 {[%emt 0:01:01]} 8. g3 {[%emt 0:04:46]} Nxf3+ {[%emt 0:00:18]} 9. Qxf3 {[%emt 0:00:19]} Ne5 {[%emt 0:00:02]} 10. Qe3 {[%emt 0:08:29]} e6 {[%emt 0:00:07]} 11. b3 {[%emt 0:02:06]} Be7 {[%emt 0:19:56]} 12. Bb2 {[%emt 0:07:15]} O-O {[%emt 0:01:28]} 13. f4 {[%emt 0:06:17]} Nc6 {[%emt 0:08:37]} 14. Nd5 {[%emt 0:01:31]} exd5 {[%emt 0:14:07]} 15. exd5 {[%emt 0:00:32]} Qd6 {[%emt 0:17:58]} 16. dxc6 {[%emt 0:06:02]} Bf6 {[%emt 0:00:06]} 17. Bxf6 {[%emt 0:05:22]} Qxf6 {[%emt 0:00:08]} 18. Qxc5 {[%emt 0:10:34]} dxc6 {[%emt 0:01:00]} 19. Re5 {[%emt 0:00:15]} Be6 {[%emt 0:04:40]} 20. Rae1 {[%emt 0:00:31]} Rad8 {[%emt 0:00:34]} 21. d3 {[%emt 0:01:37]} Rd5 {[%emt 0:00:14]} 22. Qb6 {[%emt 0:04:59]} Rb5 {[%emt 0:02:26]} 23. Qe3 {[%emt 0:03:35]} Qd8 {[%emt 0:01:02]} 24. Bg2 {[%emt 0:04:10]} Qa5 {[%emt 0:01:14]} 25. a4 {[%emt 0:08:37]} Rxe5 {[%emt 0:00:26]} 26. Qxe5 {[%emt 0:03:22]} Qd2 {[%emt 0:00:32]} 27. Re2 {[%emt 0:02:43]} Qd1+ {[%emt 0:00:31]} 28. Kf2 {[%emt 0:02:08]} Bg4 {[%emt 0:00:31]} 29. Bf3 {[%emt 0:00:07]} Bh3 {[%emt 0:01:10]} 30. g4 {[%emt 0:01:31]} Qf1+ {[%emt 0:01:46]} 31. Kg3 {[%emt 0:00:54]} Bxg4 {[%emt 0:03:16]} 32. Bxg4 {[%emt 0:00:28]} Qg1+ {[%emt 0:00:05]} 33. Rg2 {[%emt 0:00:40]} Qc1 {[%emt 0:00:02]} 34. h3 {[%emt 0:01:09]} g6 {[%emt 0:00:11]} 35. Kh2 {[%emt 0:00:32]} f6 {[%emt 0:00:06]} 36. Qe6+ {[%emt 0:01:19]} Kg7 {[%emt 0:00:07]} 37. Rf2 {[%emt 0:00:51]} f5 {[%emt 0:00:03]} 38. Qe7+ {[%emt 0:01:30]} Rf7 {[%emt 0:00:08]} 39. Qe5+ {[%emt 0:00:10]} Kh6 {[%emt 0:01:14]} 40. Bf3 {[%emt 0:00:28]} Qa3 {[%emt 0:00:09]} 41. Re2 {[%emt 0:30:36]} Qb4 {[%emt 0:30:33]} 42. Kg3 {[%emt 0:00:00]} Qa3 {[%emt 0:00:00]} 43. Kg2 {[%emt 0:00:00]} Qb4 {[%emt 0:00:00]} 44. h4 {[%emt 0:00:00]} 1-0

[Event "FRA-chT Top 12 2019"]
[Site "Brest"]
[Date "2019.05.23"]
[Round "6.7"]
[White "Jeanne, Mickael"]
[Black "Genzling, Alain"]
[Result "0-1"]
[ECO "A37"]
[WhiteElo "2150"]
[BlackElo "2376"]
[Annotator "NA RC"]
[PlyCount "68"]
[EventDate "2019.05.18"]
[EventType "team-tourn"]
[EventCountry "FRA"]
[SourceTitle "playchess.com"]
[Source "ChessBase"]
[SourceQuality "1"]
[TimeControl "40/5400+30:1800+30"]

1. Nf3 {[%emt 0:00:00]} c5 {[%emt 0:00:00]} 2. c4 {[%emt 0:00:30]} g6 {[%emt 0:00:10]} 3. Nc3 {[%emt 0:00:26]} Bg7 {[%emt 0:00:24]} 4. g3 {[%emt 0:00:19]} Nc6 {[%emt 0:04:46]} 5. Bg2 {[%emt 0:00:39]} e5 {[%emt 0:00:35]} 6. O-O {[%emt 0:02:01]} Nge7 {[%emt 0:01:58]} 7. a3 {[%emt 0:06:46]} a5 {[%emt 0:05:31]} 8. Ne1 {[%emt 0:00:56]} O-O {[%emt 0:00:21]} 9. Nc2 {[%emt 0:00:23]} Rb8 {[%emt 0:02:14]} 10. Ne3 {[%emt 0:01:49]} Nd4 $11 {[%emt 0:06:38]} 11. Ned5 {[%emt 0:08:49]} Nxd5 {[%emt 0:09:34]} 12. Bxd5 {[%emt 0:10:53]} d6 {[%emt 0:08:48]} 13. Rb1 {[%emt 0:28:07]} b5 {[%emt 0:27:18]} 14. e3 {[%emt 0:12:55]} b4 {[%emt 0:00:36]} 15. axb4 {[%emt 0:00:24]} axb4 {[%emt 0:00:51]} 16. exd4 {[%emt 0:11:51]} bxc3 {[%emt 0:01:57]} 17. dxc5 {[%emt 0:00:54]} Bf5 {[%emt 0:07:11]} 18. d3 {[%emt 0:00:16]} cxb2 {[%emt 0:09:01]} 19. Rxb2 {[%emt 0:01:13]} dxc5 {[%emt 0:00:59]} 20. Rxb8 {[%emt 0:03:46]} Qxb8 {[%emt 0:00:01]} 21. Be3 {[%emt 0:01:59]} Qb4 {[%emt 0:00:03]} 22. Qe2 {[%emt 0:01:33]} Qa3 {[%emt 0:01:14]} 23. Rd1 {[%emt 0:00:59]} h5 {[%emt 0:00:54]} 24. Kg2 {[%emt 0:02:48]} Rb8 {[%emt 0:01:32]} 25. Be4 {[%emt 0:00:44]} Bg4 {[%emt 0:00:56]} 26. f3 {[%emt 0:00:51]} Be6 {[%emt 0:00:08]} 27. g4 {[%emt 0:00:55]} Rb2 {[%emt 0:08:11]} 28. Rd2 {[%emt 0:00:05]} Rxd2 {[%emt 0:00:19]} 29. Bxd2 {[%emt 0:00:36]} hxg4 {[%emt 0:00:01]} 30. fxg4 {[%emt 0:00:14]} Qa2 {[%emt 0:00:01]} 31. Bf3 {[%emt 0:00:31]} e4 {[%emt 0:01:03]} 32. dxe4 {[%emt 0:00:37]} Bxc4 {[%emt 0:00:02]} 33. Qf2 {[%emt 0:00:36]} Bd4 {[%emt 0:00:18]} 34. Be3 {[%emt 0:00:59]} Bxe3 {[%emt 0:00:05]} 0-1

[Event "FRA-chT Top 12 2019"]
[Site "Brest"]
[Date "2019.05.23"]
[Round "6.7"]
[White "Nelis, Jean-Francois"]
[Black "Cornette, Matthieu"]
[Result "1/2-1/2"]
[ECO "B30"]
[WhiteElo "2149"]
[BlackElo "2553"]
[Annotator "RC"]
[PlyCount "150"]
[EventDate "2019.05.18"]
[EventType "team-tourn"]
[EventCountry "FRA"]
[SourceTitle "playchess.com"]
[Source "ChessBase"]
[SourceQuality "1"]
[TimeControl "40/5400+30:1800+30"]

1. e4 {[%emt 0:00:00]} c5 {[%emt 0:00:00]} 2. Nf3 {[%emt 0:00:00]} Nc6 {[%emt 0:00:18]} 3. Bb5 {[%emt 0:00:03]} e6 {[%emt 0:00:22]} 4. Bxc6 {[%emt 0:00:20]} bxc6 {[%emt 0:00:07]} 5. b3 {[%emt 0:00:45]} d5 {[%emt 0:00:15]} 6. d3 {[%emt 0:02:10]} Ne7 {[%emt 0:01:18]} 7. Qe2 {[%emt 0:02:19]} Ng6 {[%emt 0:01:48]} 8. h4 {[%emt 0:03:26]} h5 {[%emt 0:01:10]} 9. Bb2 {[%emt 0:04:19]} f6 {[%emt 0:03:04]} 10. g3 {[%emt 0:02:17]} e5 {[%emt 0:00:46]} 11. Nbd2 {[%emt 0:03:50]} Bg4 {[%emt 0:02:34]} 12. Nf1 {[%emt 0:05:17]} Qa5+ {[%emt 0:10:19]} 13. Qd2 {[%emt 0:03:16]} Qb6 {[%emt 0:00:28]} 14. N3h2 {[%emt 0:01:30]} Be6 {[%emt 0:01:47]} 15. c4 {[%emt 0:01:10]} Rd8 {[%emt 0:08:30]} 16. Qc2 {[%emt 0:07:47]} Bd6 {[%emt 0:06:40]} 17. Ne3 {[%emt 0:02:43]} d4 {[%emt 0:01:07]} 18. Nef1 {[%emt 0:01:15]} f5 {[%emt 0:06:56]} 19. exf5 {[%emt 0:01:58]} Bxf5 {[%emt 0:00:06]} 20. Nd2 {[%emt 0:03:06]} Qa5 {[%emt 0:07:52]} 21. O-O {[%emt 0:03:03]} Be7 {[%emt 0:01:36]} 22. Rfe1 {[%emt 0:03:02]} Qc7 {[%emt 0:00:15]} 23. Ne4 {[%emt 0:00:31]} Qd7 {[%emt 0:02:28]} 24. Qe2 {[%emt 0:06:29]} Qe6 {[%emt 0:04:39]} 25. Bc1 {[%emt 0:00:41]} Bxe4 {[%emt 0:04:07]} 26. Qxe4 {[%emt 0:00:14]} O-O {[%emt 0:00:04]} 27. Bd2 {[%emt 0:17:53]} Rf5 {[%emt 0:00:10]} 28. Re2 {[%emt 0:00:30]} Rdf8 {[%emt 0:00:21]} 29. Rf1 Nh8 {[%emt 0:03:14]} 30. Rfe1 {[%emt 0:10:46]} Qg6 {[%emt 0:04:41]} 31. Rb1 {[%emt 0:07:23]} Nf7 {[%emt 0:04:55]} 32. Be1 {[%emt 0:02:07]} Qe6 {[%emt 0:07:41]} 33. Bd2 {[%emt 0:03:24]} Qd7 {[%emt 0:03:59]} 34. Qg2 {[%emt 0:00:38]} Nd6 {[%emt 0:04:46]} 35. Rbe1 {[%emt 0:00:18]} Bf6 {[%emt 0:06:06]} 36. Bc1 {[%emt 0:00:22]} g6 {[%emt 0:00:45]} 37. Ba3 {[%emt 0:01:31]} Nb7 {[%emt 0:00:30]} 38. Nf3 {[%emt 0:00:58]} Qc7 {[%emt 0:00:24]} 39. Bc1 {[%emt 0:00:28]} Nd6 {[%emt 0:01:25]} 40. Nd2 {[%emt 0:00:57]} Bg7 {[%emt 0:01:00]} 41. Ne4 {[%emt 0:30:38]} Nxe4 {[%emt 0:07:10]} 42. Qxe4 {[%emt 0:00:00]} Kh7 {[%emt 0:00:22]} 43. Bg5 {[%emt 0:00:00]} Rf3 {[%emt 0:06:01]} 44. Kg2 {[%emt 0:00:00]} Qd7 {[%emt 0:00:12]} 45. Rd2 {[%emt 0:00:00]} R3f5 {[%emt 0:01:10]} 46. Kg1 {[%emt 0:00:00]} Qf7 {[%emt 0:02:24]} 47. Ree2 {[%emt 0:00:00]} Qc7 {[%emt 0:00:39]} 48. Kg2 {[%emt 0:00:00]} a5 {[%emt 0:01:26]} 49. Rb2 {[%emt 0:00:00]} Bh6 {[%emt 0:00:34]} 50. Bxh6 {[%emt 0:00:00]} Kxh6 {[%emt 0:00:02]} 51. Re1 {[%emt 0:00:00]} g5 {[%emt 0:02:38]} 52. hxg5+ {[%emt 0:00:00]} Rxg5 {[%emt 0:00:04]} 53. Rh1 {[%emt 0:00:00]} Rf4 {[%emt 0:00:17]} 54. Qe2 {[%emt 0:00:00]} Qf7 {[%emt 0:00:57]} 55. Rh3 {[%emt 0:00:00]} Kg6 {[%emt 0:03:39]} 56. Rb1 {[%emt 0:00:00]} Qf5 {[%emt 0:04:13]} 57. f3 {[%emt 0:04:14]} Kg7 {[%emt 0:03:06]} 58. Rbh1 {[%emt 0:00:28]} Qg6 {[%emt 0:00:23]} 59. Kh2 {[%emt 0:01:13]} Rf6 {[%emt 0:01:14]} 60. Rf1 {[%emt 0:00:46]} Rgf5 {[%emt 0:00:53]} 61. Kg2 {[%emt 0:00:40]} Qg5 {[%emt 0:00:18]} 62. Rh4 {[%emt 0:01:19]} Rg6 {[%emt 0:00:26]} 63. Rh3 {[%emt 0:00:10]} Qf6 {[%emt 0:00:39]} 64. Qd2 {[%emt 0:00:34]} Qd8 {[%emt 0:01:21]} 65. Rfh1 {[%emt 0:01:04]} Rfg5 {[%emt 0:00:08]} 66. Kf2 {[%emt 0:00:29]} Qf6 {[%emt 0:00:50]} 67. Qe2 {[%emt 0:00:33]} h4 {[%emt 0:01:41]} 68. Rxh4 {[%emt 0:00:41]} Rxg3 {[%emt 0:00:01]} 69. Rh7+ {[%emt 0:00:48]} Kf8 {[%emt 0:00:51]} 70. Rh8+ {[%emt 0:01:09]} Ke7 {[%emt 0:00:09]} 71. Qe4 {[%emt 0:01:03]} Qg5 {[%emt 0:00:25]} 72. R1h7+ {[%emt 0:00:21]} Kd6 {[%emt 0:00:24]} 73. Qxg6+ {[%emt 0:00:17]} Qxg6 {[%emt 0:00:03]} 74. Rh6 {[%emt 0:00:05]} Rg2+ {[%emt 0:01:32]} 75. Kf1 {[%emt 0:00:05]} Rg1+ {[%emt 0:01:46]} 1/2-1/2